fUSD/lending_fUSD_20260528
["ID","MTS","AMOUNT","RATE_DAILY","PERIOD"]
[423239948,1779976245000,-458.0,0.00016164,2]
[423239934,1779976245000,-500.0,0.00016164,2]
[423239929,1779976245000,-500.0,0.00016164,2]
[423239911,1779976245000,-2800.50485724,0.0001611,15]
[423239917,1779976245000,-500.0,0.00016164,2]
[423239947,1779976245000,-458.0,0.00016164,2]
[423239889,1779976245000,-157.53,0.00015787,2]
[423239888,1779976245000,-400.0,0.000156,2]
[423239891,1779976245000,-400.0,0.000158,2]
[423239894,1779976245000,-433.0,0.00015895,2]
[423239904,1779976245000,-162.25,0.00016,2]
[423239893,1779976245000,-164.32,0.00015825,2]
[423239895,1779976245000,-150.0,0.000159,2]
[423239897,1779976245000,-150.0,0.000159,2]
[423239900,1779976245000,-2000.0,0.00016,2]
[423239896,1779976245000,-150.0,0.000159,2]
[423239899,1779976245000,-150.0,0.000159,2]
[423239919,1779976245000,-1443.0,0.00016164,2]
[423239898,1779976245000,-150.0,0.000159,2]
[423239901,1779976245000,-162.25,0.00016,2]
[423239906,1779976245000,-227.21135545,0.00016,2]
[423239916,1779976245000,-500.0,0.00016164,2]
[423239905,1779976245000,-300.0,0.00016,2]
[423239907,1779976245000,-2000.0,0.0001601,2]
[423239909,1779976245000,-227.21135545,0.000161,2]
[423239910,1779976245000,-3270.15089714,0.0001611,2]
[423239913,1779976245000,-500.0,0.00016164,2]
[423239914,1779976245000,-500.0,0.00016164,2]
[423239908,1779976245000,-3618.918562,0.0001602,2]
[423239912,1779976245000,-500.0,0.00016164,2]
[423239915,1779976245000,-500.0,0.00016164,2]
[423239903,1779976245000,-162.25,0.00016,2]
[423239902,1779976245000,-162.25,0.00016,2]
[423239953,1779976245000,-458.0,0.00016164,2]
[423239955,1779976245000,-458.0,0.00016164,2]
[423239977,1779976245000,-1425.0,0.00016438,2]
[423239983,1779976245000,-200.0,0.00016438,2]
[423239987,1779976245000,-200.0,0.00016438,2]
[423239984,1779976245000,-200.0,0.00016438,2]
[423239990,1779976245000,-200.0,0.00016438,2]
[423239985,1779976245000,-200.0,0.00016438,2]
[423239988,1779976245000,-200.0,0.00016438,2]
[423239986,1779976245000,-200.0,0.00016438,2]
[423239992,1779976245000,-200.0,0.00016438,2]
[423239989,1779976245000,-200.0,0.00016438,2]
[423239993,1779976245000,-200.0,0.00016438,2]
[423239991,1779976245000,-200.0,0.00016438,2]
[423239979,1779976245000,-150.0,0.00016438,2]
[423239995,1779976245000,-200.0,0.00016438,2]
[423240007,1779976245000,-200.0,0.00016438,2]
[423239996,1779976245000,-200.0,0.00016438,2]
[423239998,1779976245000,-200.0,0.00016438,2]
[423240001,1779976245000,-200.0,0.00016438,2]
[423240002,1779976245000,-200.0,0.00016438,2]
[423239999,1779976245000,-200.0,0.00016438,2]
[423240003,1779976245000,-200.0,0.00016438,2]
[423240000,1779976245000,-200.0,0.00016438,2]
[423240005,1779976245000,-200.0,0.00016438,2]
[423240006,1779976245000,-200.0,0.00016438,2]
[423240004,1779976245000,-200.0,0.00016438,2]
[423239946,1779976245000,-569.87645658,0.00016164,2]
[423239997,1779976245000,-200.0,0.00016438,2]
[423239978,1779976245000,-179.92,0.00016438,2]
[423239994,1779976245000,-200.0,0.00016438,2]
[423239974,1779976245000,-10000.0,0.000163,30]
[423239980,1779976245000,-150.0,0.00016438,2]
[423239949,1779976245000,-458.0,0.00016164,2]
[423239952,1779976245000,-458.0,0.00016164,2]
[423239950,1779976245000,-458.0,0.00016164,2]
[423239954,1779976245000,-458.0,0.00016164,2]
[423239951,1779976245000,-458.0,0.00016164,2]
[423239957,1779976245000,-458.0,0.00016164,2]
[423239959,1779976245000,-458.0,0.00016164,2]
[423239960,1779976245000,-458.0,0.00016164,2]
[423239958,1779976245000,-458.0,0.00016164,2]
[423239967,1779976245000,-458.0,0.00016164,2]
[423239966,1779976245000,-458.0,0.00016164,2]
[423239961,1779976245000,-458.0,0.00016164,2]
[423239968,1779976245000,-458.0,0.00016164,2]
[423239956,1779976245000,-458.0,0.00016164,2]
[423239975,1779976245000,-3085.7,0.00016438,2]
[423239969,1779976245000,-458.0,0.00016164,2]
[423239976,1779976245000,-793.47826507,0.00016438,2]
[423239973,1779976245000,-500.0,0.00016247,2]
[423239972,1779976245000,-227.21135545,0.000162,2]
[423239981,1779976245000,-150.0,0.00016438,2]
[423239970,1779976245000,-465.0,0.00016164,2]
[423239982,1779976245000,-216.0,0.00016438,2]
[423239964,1779976245000,-458.0,0.00016164,2]
[423239965,1779976245000,-458.0,0.00016164,2]
[423239962,1779976245000,-458.0,0.00016164,2]
[423239963,1779976245000,-458.0,0.00016164,2]
[423239971,1779976245000,-254.59138378,0.00016185,7]
[423240043,1779976246000,-1100.0,0.000179,6]
[423240049,1779976246000,-165.66423033,0.00018,2]
[423240047,1779976246000,-173.20361022,0.00017968,7]
[423240058,1779976246000,-3085.7,0.0001841,2]
[423240062,1779976246000,-161.3292497,0.000185,2]
[423240045,1779976246000,-169.43,0.00017912,2]
[423240042,1779976246000,-1239.59148304,0.0001789,2]
[423240040,1779976246000,-793.20442286,0.000177,2]
[423240046,1779976246000,-169.43,0.00017912,2]
[423240044,1779976246000,-169.43,0.00017912,2]
[423240048,1779976246000,-161.3292497,0.00018,2]
[423240041,1779976246000,-216.32,0.00017735,2]
[423240051,1779976246000,-350.0,0.00018,2]
[423240057,1779976246000,-165.66423033,0.000184,2]
[423240050,1779976246000,-27594.37541513,0.00018,2]
[423240055,1779976246000,-165.66423033,0.000182,2]
[423240052,1779976246000,-713.226917,0.00018082,2]
[423240053,1779976246000,-2000.0,0.00018172,2]
[423240054,1779976246000,-161.3292497,0.000182,2]
[423240059,1779976246000,-157.53,0.00018419,2]
[423240061,1779976246000,-1142.0,0.00018465,2]
[423240060,1779976246000,-615.0,0.00018465,2]
[423240066,1779976246000,-1252.0,0.0001861,2]
[423240069,1779976246000,-2500.0,0.00019,2]
[423240071,1779976246000,-45853.76252045,0.00019,2]
[423240064,1779976246000,-665.47,0.000186,2]
[423240056,1779976246000,-161.3292497,0.000184,2]
[423240038,1779976246000,-11115.86,0.00017572,2]
[423240008,1779976246000,-200.0,0.00016438,2]
[423240036,1779976246000,-665.35,0.00017572,2]
[423240010,1779976246000,-200.0,0.00016438,2]
[423240014,1779976246000,-200.0,0.00016438,2]
[423240013,1779976246000,-200.0,0.00016438,2]
[423240011,1779976246000,-200.0,0.00016438,2]
[423240012,1779976246000,-200.0,0.00016438,2]
[423240015,1779976246000,-200.0,0.00016438,2]
[423240017,1779976246000,-200.0,0.00016438,2]
[423240021,1779976246000,-200.0,0.00016438,2]
[423240016,1779976246000,-200.0,0.00016438,2]
[423240019,1779976246000,-200.0,0.00016438,2]
[423240020,1779976246000,-200.0,0.00016438,2]
[423240022,1779976246000,-293.420653,0.00016438,2]
[423240018,1779976246000,-200.0,0.00016438,2]
[423240024,1779976246000,-6616.87961098,0.000165,2]
[423240033,1779976246000,-1425.0,0.0001726,2]
[423240034,1779976246000,-3270.15089714,0.00017365,2]
[423240032,1779976246000,-736.0,0.00017198,2]
[423240023,1779976246000,-900.0,0.00016438,2]
[423240025,1779976246000,-13066.99849394,0.000165,2]
[423240030,1779976246000,-168.1,0.00016712,2]
[423240029,1779976246000,-368.42609781,0.00016616,2]
[423240027,1779976246000,-2000.0,0.0001652,2]
[423240026,1779976246000,-1000.0,0.000165,2]
[423240028,1779976246000,-218.32,0.000166,2]
[423240031,1779976246000,-157.53,0.00017103,2]
[423240035,1779976246000,-465.10414865,0.00017565,2]
[423240037,1779976246000,-1590.57,0.00017572,2]
[423240039,1779976246000,-152.81,0.00017588,2]
[423240063,1779976246000,-500.0,0.00018512,2]
[423240087,1779976246000,-151.0,0.00019178,2]
[423240070,1779976246000,-215.50460005,0.00019,30]
[423240111,1779976246000,-151.0,0.00019178,2]
[423240099,1779976246000,-151.0,0.00019178,2]
[423240114,1779976246000,-151.0,0.00019178,2]
[423240103,1779976246000,-151.0,0.00019178,2]
[423240116,1779976246000,-151.0,0.00019178,2]
[423240098,1779976246000,-151.0,0.00019178,2]
[423240105,1779976246000,-151.0,0.00019178,2]
[423240118,1779976246000,-151.0,0.00019178,2]
[423240126,1779976246000,-151.0,0.00019178,2]
[423240130,1779976246000,-20428.09,0.00019178,2]
[423240127,1779976246000,-151.0,0.00019178,2]
[423240119,1779976246000,-151.0,0.00019178,2]
[423240112,1779976246000,-151.0,0.00019178,2]
[423240129,1779976246000,-151.0,0.00019178,2]
[423240120,1779976246000,-151.0,0.00019178,2]
[423240122,1779976246000,-151.0,0.00019178,2]
[423240125,1779976246000,-151.0,0.00019178,2]
[423240124,1779976246000,-151.0,0.00019178,2]
[423240131,1779976246000,-1966.84,0.00019339,2]
[423240135,1779976246000,-3746.6,0.00019339,2]
[423240136,1779976246000,-9999.99,0.00019339,2]
[423240132,1779976246000,-9999.99,0.00019339,2]
[423240133,1779976246000,-150.99,0.00019339,2]
[423240134,1779976246000,-999.99,0.00019339,2]
[423240137,1779976246000,-2940.98,0.00019339,2]
[423240065,1779976246000,-218.32,0.000186,2]
[423240121,1779976246000,-151.0,0.00019178,2]
[423240096,1779976246000,-151.0,0.00019178,2]
[423240128,1779976246000,-151.0,0.00019178,2]
[423240108,1779976246000,-151.0,0.00019178,2]
[423240101,1779976246000,-151.0,0.00019178,2]
[423240068,1779976246000,-1455.64,0.00018999,2]
[423240073,1779976246000,-2233.0,0.00019,2]
[423240072,1779976246000,-163.12506766,0.00019,2]
[423240083,1779976246000,-151.0,0.00019178,2]
[423240074,1779976246000,-1142.0,0.0001915,2]
[423240081,1779976246000,-151.0,0.00019178,2]
[423240078,1779976246000,-264.18629754,0.00019178,2]
[423240080,1779976246000,-151.0,0.00019178,2]
[423240077,1779976246000,-250.0,0.00019178,2]
[423240079,1779976246000,-3000.0,0.00019178,2]
[423240082,1779976246000,-151.0,0.00019178,2]
[423240076,1779976246000,-250.0,0.00019178,2]
[423240075,1779976246000,-250.0,0.00019178,2]
[423240067,1779976246000,-3270.15089714,0.00018621,2]
[423240090,1779976246000,-151.0,0.00019178,2]
[423240086,1779976246000,-151.0,0.00019178,2]
[423240085,1779976246000,-151.0,0.00019178,2]
[423240093,1779976246000,-151.0,0.00019178,2]
[423240091,1779976246000,-151.0,0.00019178,2]
[423240095,1779976246000,-151.0,0.00019178,2]
[423240089,1779976246000,-151.0,0.00019178,2]
[423240094,1779976246000,-151.0,0.00019178,2]
[423240088,1779976246000,-151.0,0.00019178,2]
[423240084,1779976246000,-151.0,0.00019178,2]
[423240092,1779976246000,-151.0,0.00019178,2]
[423240097,1779976246000,-151.0,0.00019178,2]
[423240107,1779976246000,-151.0,0.00019178,2]
[423240177,1779976247000,-660.0,0.0002,2]
[423240174,1779976247000,-418.0,0.0002,2]
[423240169,1779976247000,-200.0,0.0002,2]
[423240182,1779976247000,-2000.0,0.0002001,2]
[423240176,1779976247000,-1376.0,0.0002,2]
[423240173,1779976247000,-2444.12,0.0002,2]
[423240178,1779976247000,-151.72681805,0.0002,20]
[423240179,1779976247000,-156.0,0.0002,2]
[423240171,1779976247000,-400.0,0.0002,2]
[423240172,1779976247000,-1079.0,0.0002,2]
[423240180,1779976247000,-200.0,0.0002,2]
[423240192,1779976247000,-3085.7,0.00020381,2]
[423240175,1779976247000,-5903.0,0.0002,2]
[423240181,1779976247000,-221.0,0.0002,2]
[423240191,1779976247000,-200.0,0.000202,2]
[423240188,1779976247000,-200.0,0.000202,2]
[423240193,1779976247000,-200.0,0.00020402,2]
[423240187,1779976247000,-1549.42451778,0.00020145,2]
[423240183,1779976247000,-2000.0,0.0002002,2]
[423240185,1779976247000,-2129.0,0.0002013,2]
[423240189,1779976247000,-200.0,0.000202,2]
[423240184,1779976247000,-2881.803606,0.0002003,2]
[423240190,1779976247000,-200.0,0.000202,2]
[423240196,1779976247000,-200.0,0.00020402,2]
[423240194,1779976247000,-200.0,0.00020402,2]
[423240195,1779976247000,-200.0,0.00020402,2]
[423240204,1779976247000,-200.0,0.00020606,2]
[423240186,1779976247000,-1455.64,0.00020144,2]
[423240170,1779976247000,-171.0,0.0002,2]
[423240139,1779976247000,-157.53,0.00019734,2]
[423240162,1779976247000,-169.0,0.0002,2]
[423240202,1779976247000,-161.96751492,0.00020606,2]
[423240143,1779976247000,-150.0,0.000199,2]
[423240141,1779976247000,-1142.0,0.00019835,2]
[423240140,1779976247000,-2000.0,0.00019824,2]
[423240142,1779976247000,-3270.15089714,0.00019877,2]
[423240144,1779976247000,-150.0,0.000199,2]
[423240146,1779976247000,-150.0,0.000199,2]
[423240145,1779976247000,-150.0,0.000199,2]
[423240155,1779976247000,-1059.80881447,0.0002,2]
[423240154,1779976247000,-200.0,0.0002,2]
[423240147,1779976247000,-156.44778373,0.000199,2]
[423240150,1779976247000,-5284.10140603,0.0002,2]
[423240148,1779976247000,-150.0,0.000199,2]
[423240163,1779976247000,-2233.0,0.0002,2]
[423240153,1779976247000,-1312.94656269,0.0002,2]
[423240152,1779976247000,-10533.5090023,0.0002,2]
[423240151,1779976247000,-199.29868437,0.0002,2]
[423240157,1779976247000,-2000.0,0.0002,2]
[423240168,1779976247000,-613.04222186,0.0002,2]
[423240158,1779976247000,-6185.80955307,0.0002,2]
[423240165,1779976247000,-200.0,0.0002,2]
[423240167,1779976247000,-500.0,0.0002,2]
[423240166,1779976247000,-200.0,0.0002,2]
[423240156,1779976247000,-2638.59734204,0.0002,2]
[423240159,1779976247000,-2000.0,0.0002,2]
[423240160,1779976247000,-1085.0,0.0002,2]
[423240161,1779976247000,-158.8477614,0.0002,2]
[423240164,1779976247000,-389.0,0.0002,2]
[423240149,1779976247000,-150.0,0.000199,2]
[423240203,1779976247000,-200.0,0.00020606,2]
[423240138,1779976247000,-299.99,0.00019339,7]
[423240205,1779976247000,-168.1,0.00020639,2]
[423240238,1779976247000,-209.40437684,0.00021108,2]
[423240239,1779976247000,-200.0,0.00021108,2]
[423240232,1779976247000,-743.50770149,0.00021108,2]
[423240236,1779976247000,-151.0,0.00021108,2]
[423240233,1779976247000,-151.0,0.00021108,2]
[423240240,1779976247000,-693.39197629,0.00021108,2]
[423240234,1779976247000,-151.0,0.00021108,2]
[423240242,1779976247000,-151.0,0.00021108,2]
[423240237,1779976247000,-500.0,0.00021108,2]
[423240243,1779976247000,-151.0,0.00021108,2]
[423240245,1779976247000,-221.88543241,0.00021108,2]
[423240246,1779976247000,-209.40437684,0.00021108,2]
[423240247,1779976247000,-151.0,0.00021108,2]
[423240235,1779976247000,-9552.16786547,0.00021108,2]
[423240250,1779976247000,-500.0,0.00021108,2]
[423240252,1779976247000,-230.09519341,0.00021108,2]
[423240244,1779976247000,-500.0,0.00021108,2]
[423240253,1779976247000,-2080.17592889,0.00021108,2]
[423240251,1779976247000,-1428.38747117,0.00021108,2]
[423240254,1779976247000,-151.0,0.00021108,2]
[423240255,1779976247000,-151.0,0.00021108,2]
[423240257,1779976247000,-500.0,0.00021108,2]
[423240260,1779976247000,-151.0,0.00021108,2]
[423240258,1779976247000,-151.0,0.00021108,2]
[423240261,1779976247000,-500.0,0.00021108,2]
[423240256,1779976247000,-152.0,0.00021108,2]
[423240259,1779976247000,-238.60871557,0.00021108,2]
[423240201,1779976247000,-200.0,0.00020606,2]
[423240249,1779976247000,-151.0,0.00021108,2]
[423240241,1779976247000,-152.0,0.00021108,2]
[423240248,1779976247000,-152.0,0.00021108,2]
[423240231,1779976247000,-721.12765534,0.00021108,2]
[423240197,1779976247000,-267.404731,0.0002052,2]
[423240230,1779976247000,-151.0,0.00021108,2]
[423240198,1779976247000,-4107.09,0.00020548,2]
[423240199,1779976247000,-2850.44,0.00020548,2]
[423240200,1779976247000,-256.0,0.000206,5]
[423240217,1779976247000,-151.0,0.00021108,2]
[423240207,1779976247000,-200.0,0.00020812,2]
[423240206,1779976247000,-200.0,0.00020812,2]
[423240208,1779976247000,-1085.0,0.00021,2]
[423240209,1779976247000,-169.0,0.00021,2]
[423240215,1779976247000,-1376.0,0.00021,2]
[423240216,1779976247000,-156.0,0.00021,2]
[423240211,1779976247000,-389.0,0.00021,2]
[423240212,1779976247000,-171.0,0.00021,2]
[423240210,1779976247000,-2233.0,0.00021,2]
[423240214,1779976247000,-418.0,0.00021,2]
[423240228,1779976247000,-279.9045709,0.00021108,2]
[423240213,1779976247000,-1079.0,0.00021,2]
[423240223,1779976247000,-151.0,0.00021108,2]
[423240225,1779976247000,-151.0,0.00021108,2]
[423240229,1779976247000,-578.20924308,0.00021108,2]
[423240226,1779976247000,-174.61919141,0.00021108,2]
[423240222,1779976247000,-151.0,0.00021108,2]
[423240227,1779976247000,-151.0,0.00021108,2]
[423240219,1779976247000,-151.0,0.00021108,2]
[423240221,1779976247000,-200.0,0.00021108,2]
[423240220,1779976247000,-151.0,0.00021108,2]
[423240218,1779976247000,-151.0,0.00021108,2]
[423240224,1779976247000,-151.0,0.00021108,2]
[423240306,1779976248000,-831.51979762,0.00021383,2]
[423240301,1779976248000,-151.0,0.00021273,2]
[423240299,1779976248000,-151.0,0.00021218,2]
[423240307,1779976248000,-151.0,0.00021383,2]
[423240305,1779976248000,-6474.79,0.0002137,2]
[423240294,1779976248000,-152.0,0.00021108,2]
[423240304,1779976248000,-151.0,0.00021328,2]
[423240296,1779976248000,-719.04747942,0.00021163,2]
[423240297,1779976248000,-151.0,0.00021163,2]
[423240295,1779976248000,-3270.15089714,0.00021133,2]
[423240298,1779976248000,-745.65223615,0.00021218,2]
[423240303,1779976248000,-801.85129954,0.00021328,2]
[423240300,1779976248000,-773.24136889,0.00021273,2]
[423240320,1779976248000,-290.26104002,0.00021656,2]
[423240309,1779976248000,-862.28603014,0.00021438,2]
[423240308,1779976248000,-218.32,0.000214,2]
[423240319,1779976248000,-181.08010149,0.00021656,2]
[423240312,1779976248000,-151.0,0.00021493,2]
[423240311,1779976248000,-894.19061325,0.00021493,2]
[423240310,1779976248000,-151.0,0.00021438,2]
[423240318,1779976248000,-200.0,0.00021656,2]
[423240316,1779976248000,-961.58486558,0.00021603,2]
[423240317,1779976248000,-151.0,0.00021603,2]
[423240314,1779976248000,-927.27566594,0.00021548,2]
[423240315,1779976248000,-151.0,0.00021548,2]
[423240313,1779976248000,-465.10414865,0.00021532,2]
[423240293,1779976248000,-151.0,0.00021108,2]
[423240302,1779976248000,-500.0,0.00021324,2]
[423240290,1779976248000,-500.0,0.00021108,2]
[423240266,1779976248000,-500.0,0.00021108,2]
[423240287,1779976248000,-500.0,0.00021108,2]
[423240322,1779976248000,-9905.59807649,0.00021656,2]
[423240267,1779976248000,-256.59241585,0.00021108,2]
[423240268,1779976248000,-151.0,0.00021108,2]
[423240262,1779976248000,-152.0,0.00021108,2]
[423240265,1779976248000,-151.0,0.00021108,2]
[423240264,1779976248000,-247.43723804,0.00021108,2]
[423240263,1779976248000,-151.0,0.00021108,2]
[423240269,1779976248000,-151.0,0.00021108,2]
[423240272,1779976248000,-151.0,0.00021108,2]
[423240271,1779976248000,-152.0,0.00021108,2]
[423240274,1779976248000,-151.0,0.00021108,2]
[423240273,1779976248000,-266.08633524,0.00021108,2]
[423240270,1779976248000,-500.0,0.00021108,2]
[423240291,1779976248000,-152.0,0.00021108,2]
[423240275,1779976248000,-500.0,0.00021108,2]
[423240277,1779976248000,-151.0,0.00021108,2]
[423240280,1779976248000,-500.0,0.00021108,2]
[423240279,1779976248000,-151.0,0.00021108,2]
[423240278,1779976248000,-275.93152964,0.00021108,2]
[423240281,1779976248000,-152.0,0.00021108,2]
[423240282,1779976248000,-286.14099624,0.00021108,2]
[423240283,1779976248000,-151.0,0.00021108,2]
[423240286,1779976248000,-151.0,0.00021108,2]
[423240289,1779976248000,-151.0,0.00021108,2]
[423240285,1779976248000,-296.7282131,0.00021108,2]
[423240284,1779976248000,-152.0,0.00021108,2]
[423240288,1779976248000,-152.0,0.00021108,2]
[423240292,1779976248000,-277.48760411,0.00021108,2]
[423240276,1779976248000,-152.0,0.00021108,2]
[423240321,1779976248000,-771.01748644,0.00021656,2]
[423240325,1779976248000,-217.15233878,0.00021656,2]
[423240329,1779976248000,-151.0,0.00021658,2]
[423240357,1779976248000,-525.0,0.00021954,2]
[423240358,1779976248000,-1225.0,0.00021954,2]
[423240361,1779976248000,-360985.08297501,0.00022,4]
[423240360,1779976248000,-1455.64,0.00021999,2]
[423240368,1779976248000,-1079.0,0.00022,2]
[423240364,1779976248000,-2233.0,0.00022,2]
[423240362,1779976248000,-1085.0,0.00022,2]
[423240365,1779976248000,-389.0,0.00022,2]
[423240366,1779976248000,-171.0,0.00022,2]
[423240363,1779976248000,-169.0,0.00022,2]
[423240367,1779976248000,-450.0,0.00022,2]
[423240374,1779976248000,-200.0,0.00022204,2]
[423240371,1779976248000,-156.0,0.00022,2]
[423240376,1779976248000,-301.0006985,0.00022204,2]
[423240379,1779976248000,-278.3809601,0.00022204,2]
[423240373,1779976248000,-216.32,0.00022174,2]
[423240372,1779976248000,-243.97156775,0.0002211,2]
[423240381,1779976248000,-225.18697532,0.00022204,2]
[423240377,1779976248000,-799.54513344,0.00022204,2]
[423240378,1779976248000,-10272.10520532,0.00022204,2]
[423240375,1779976248000,-187.78006524,0.00022204,2]
[423240380,1779976248000,-200.0,0.00022204,2]
[423240369,1779976248000,-418.0,0.00022,2]
[423240330,1779976248000,-2444.12,0.0002178,2]
[423240382,1779976248000,-1536.04360648,0.00022204,2]
[423240384,1779976248000,-200.0,0.0002224,2]
[423240383,1779976248000,-2236.95670847,0.00022204,2]
[423240359,1779976248000,-1455.64,0.00021999,2]
[423240353,1779976248000,-150.458,0.00021954,2]
[423240370,1779976248000,-1376.0,0.00022,2]
[423240350,1779976248000,-150.0,0.00021954,2]
[423240354,1779976248000,-150.0,0.00021954,2]
[423240331,1779976248000,-2886.0,0.00021787,2]
[423240327,1779976248000,-2157.14243826,0.00021656,2]
[423240328,1779976248000,-997.16350561,0.00021658,2]
[423240324,1779976248000,-200.0,0.00021656,2]
[423240326,1779976248000,-1481.2378076,0.00021656,2]
[423240333,1779976248000,-1000.0,0.000218,2]
[423240332,1779976248000,-309.0,0.000218,2]
[423240343,1779976248000,-800.0,0.00021918,2]
[423240339,1779976248000,-800.0,0.00021918,2]
[423240340,1779976248000,-800.0,0.00021918,2]
[423240336,1779976248000,-800.0,0.00021918,2]
[423240334,1779976248000,-2000.0,0.000218,2]
[423240335,1779976248000,-5000.0,0.00021918,2]
[423240323,1779976248000,-217.15233878,0.00021656,2]
[423240341,1779976248000,-800.0,0.00021918,2]
[423240337,1779976248000,-800.0,0.00021918,2]
[423240347,1779976248000,-150.549,0.00021954,2]
[423240345,1779976248000,-200.0,0.00021918,2]
[423240355,1779976248000,-928.0,0.00021954,2]
[423240348,1779976248000,-289.487,0.00021954,2]
[423240351,1779976248000,-150.359,0.00021954,2]
[423240356,1779976248000,-3549.0,0.00021954,2]
[423240338,1779976248000,-800.0,0.00021918,2]
[423240349,1779976248000,-150.133,0.00021954,2]
[423240352,1779976248000,-150.0,0.00021954,2]
[423240344,1779976248000,-200.0,0.00021918,2]
[423240346,1779976248000,-150.0,0.00021954,2]
[423240342,1779976248000,-800.0,0.00021918,2]
[423240412,1779976249000,-1079.0,0.00023,2]
[423240432,1779976249000,-599.60298507,0.00023847,2]
[423240408,1779976249000,-169.0,0.00023,2]
[423240418,1779976249000,-200.0,0.000233,2]
[423240416,1779976249000,-200.0,0.0002303,2]
[423240415,1779976249000,-156.0,0.00023,2]
[423240421,1779976249000,-11046.30350254,0.000233,2]
[423240430,1779976249000,-200.0,0.0002382,2]
[423240431,1779976249000,-272.05636365,0.00023846,2]
[423240429,1779976249000,-159.44,0.00023731,30]
[423240417,1779976249000,-150.0,0.000231,30]
[423240425,1779976249000,-2405.55389863,0.000233,2]
[423240423,1779976249000,-242.15909246,0.000233,2]
[423240422,1779976249000,-200.0,0.000233,2]
[423240420,1779976249000,-859.8060506,0.000233,2]
[423240424,1779976249000,-1651.81367706,0.000233,2]
[423240428,1779976249000,-3270.15089714,0.00023644,2]
[423240426,1779976249000,-330.0,0.00023308,4]
[423240427,1779976249000,-2444.12,0.0002356,2]
[423240441,1779976249000,-2494.55939288,0.00023848,2]
[423240434,1779976249000,-200.0,0.00023848,2]
[423240436,1779976249000,-513.06110349,0.00023848,2]
[423240409,1779976249000,-2233.0,0.00023,2]
[423240433,1779976249000,-214.38213536,0.00023847,2]
[423240411,1779976249000,-171.0,0.00023,2]
[423240397,1779976249000,-298.20698703,0.00022752,2]
[423240419,1779976249000,-201.93286098,0.000233,2]
[423240385,1779976249000,-3085.7,0.00022353,2]
[423240442,1779976249000,-1085.0,0.00024,2]
[423240389,1779976249000,-602.99895168,0.00022407,2]
[423240387,1779976249000,-3270.15089714,0.00022388,2]
[423240388,1779976249000,-602.99895169,0.00022407,2]
[423240390,1779976249000,-602.99895168,0.00022407,2]
[423240391,1779976249000,-1096.42,0.00022466,2]
[423240393,1779976249000,-2175.25,0.00022466,2]
[423240392,1779976249000,-2099.32,0.00022466,2]
[423240394,1779976249000,-156.587,0.00022477,2]
[423240395,1779976249000,-200.0,0.00022752,2]
[423240413,1779976249000,-418.0,0.00023,2]
[423240402,1779976249000,-1592.87721992,0.00022752,2]
[423240404,1779976249000,-1800.0,0.00022838,2]